bitfinex/quotes_SOLUSD_20241126
["timestamp","ask_amount","ask_price","bid_price","bid_amount"]
[1732646444722,6.2391875,224.3,224.17,4.4608]
[1732646445017,34.19766708,224.26,224.19,34.19766708]
[1732646445216,34.19766708,224.27,224.2,34.19766708]
[1732646445518,38.65636708,224.28,224.21,34.19766708]
[1732646445821,34.19766708,224.27,224.2,34.19766708]
[1732646446896,34.19766708,224.29,224.21,34.19766708]
[1732646447095,34.19766708,224.29,224.19,4.4603]
[1732646447096,34.19766708,224.33,224.26,34.19766708]
[1732646447314,34.19766708,224.31,224.23,34.19766708]
[1732646447504,34.19766708,224.32,224.25,34.19766708]
[1732646447801,34.19766708,224.31,224.23,34.19766708]
[1732646448015,34.19766708,224.31,224.24,34.19766708]
[1732646448315,34.19766708,224.31,224.23,34.19766708]
[1732646448493,34.19766708,224.34,224.27,34.19766708]
[1732646448695,14.8920406,224.36,224.3,34.19766708]
[1732646448917,14.8920406,224.36,224.22,24.99994941]
[1732646449117,14.8920406,224.36,224.22,37.0372]
[1732646449422,14.8920406,224.36,224.26,20.0]
[1732646449896,14.8920406,224.36,224.33,34.19766708]
[1732646450101,34.19766708,224.42,224.35,34.19766708]
[1732646450304,40.43685458,224.44,224.37,34.19766708]
[1732646450612,34.19766708,224.43,224.36,34.19766708]
[1732646451417,34.19766708,224.42,224.36,34.19766708]
[1732646451819,34.19766708,224.44,224.37,34.19766708]
[1732646451998,7.6947,224.49,224.33,24.99994941]
[1732646452198,3.24,224.49,224.33,29.99994941]
[1732646452402,4.4535,224.54,224.33,24.99994941]
[1732646452616,10.6926875,224.54,224.33,24.99994941]
[1732646453011,6.2391875,224.54,224.34,28.776884]
[1732646453210,34.19766708,224.56,224.49,34.19766708]
[1732646453525,38.65076708,224.56,224.49,34.19766708]
[1732646453833,34.19766708,224.55,224.48,34.19766708]
[1732646454030,34.19766708,224.55,224.43,11.1391]
[1732646454031,34.19766708,224.5,224.43,34.19766708]
[1732646455030,34.19766708,224.5,224.43,34.19766708]
[1732646455222,34.19766708,224.53,224.46,34.19766708]
[1732646455421,34.19766708,224.53,224.47,34.19766708]
[1732646456129,34.19766708,224.54,224.47,34.19766708]
[1732646456330,34.19766708,224.55,224.49,34.19766708]
[1732646456507,34.19766708,224.56,224.5,34.19766708]
[1732646457029,39.97859461,224.59,224.52,34.19766708]
[1732646457218,39.97859461,224.59,224.54,34.19766708]
[1732646457219,5.78092753,224.59,224.54,34.19766708]
[1732646457614,5.78092753,224.59,224.55,34.19766708]
[1732646457927,5.78092753,224.59,224.57,34.19766708]
[1732646458132,34.19766708,224.65,224.58,34.19766708]
[1732646458319,34.19766708,224.64,224.57,34.19766708]
[1732646458520,34.19766708,224.63,224.56,34.19766708]
[1732646458718,34.19766708,224.59,224.53,4.4537]
[1732646459117,34.19766708,224.6,224.53,4.4537]
[1732646459310,34.19766708,224.62,224.55,34.19766708]
[1732646459511,34.19766708,224.62,224.53,24.4537]
[1732646459512,34.19766708,224.62,224.54,34.19766708]
[1732646460012,34.19766708,224.6,224.53,58.65136708]
[1732646460213,38.64946708,224.63,224.56,34.19766708]
[1732646460621,34.19766708,224.6,224.53,58.65136708]
[1732646460817,5.49973039,224.71,224.53,35.588]
[1732646461044,34.19766708,224.69,224.62,34.19766708]
[1732646461327,34.19766708,224.68,224.59,4.4525]
[1732646461670,34.19766708,224.71,224.65,34.19766708]
[1732646461812,34.19766708,224.71,224.64,34.19766708]
[1732646462140,34.19766708,224.7,224.63,34.19766708]
[1732646462305,34.19766708,224.64,224.57,4.4528]
[1732646462509,5.75973039,224.71,224.57,4.4528]
[1732646462710,4.9864152,224.75,224.57,4.4528]
[1732646463023,4.9864152,224.75,224.6,20.0]
[1732646463332,16.1098152,224.75,224.53,11.1341]
[1732646463637,34.19766708,224.69,224.62,34.19766708]
[1732646463827,34.19766708,224.69,224.56,20.0]
[1732646463828,34.19766708,224.7,224.63,34.19766708]
[1732646464031,34.19766708,224.66,224.59,34.19766708]
[1732646464331,23.776884,224.72,224.51,4.4541]
[1732646464742,34.19766708,224.64,224.51,4.4541]
[1732646464916,34.19766708,224.66,224.6,34.19766708]
[1732646465117,34.19766708,224.73,224.65,34.19766708]
[1732646465313,0.5369152,224.75,224.69,34.19766708]
[1732646465513,0.5369152,224.75,224.66,15.579]
[1732646465709,27.66,224.67,224.66,15.579]
[1732646466141,27.66,224.67,224.66,4.4511]
[1732646466439,4.4459,224.93,224.74,4.99994941]
[1732646466652,34.19766708,224.84,224.78,34.19766708]
[1732646466938,34.19766708,224.83,224.76,34.19766708]
[1732646467136,34.19766708,224.82,224.75,34.19766708]
[1732646467430,34.19766708,224.8,224.73,34.19766708]
[1732646467635,34.19766708,224.83,224.76,34.19766708]
[1732646467836,4.4462,224.91,224.73,20.0]
[1732646468050,34.19766708,224.9,224.83,34.19766708]
[1732646468214,34.19766708,224.93,224.86,34.19766708]
[1732646468410,34.19766708,224.93,224.87,34.19766708]
[1732646469033,4.445,224.97,224.89,34.19766708]
[1732646469226,0.5369152,224.98,224.92,34.19766708]
[1732646469526,34.73458228,224.98,224.91,34.19766708]
[1732646469717,34.19766708,224.97,224.9,38.64406708]
[1732646469912,34.19766708,224.95,224.88,34.19766708]
[1732646470113,34.19766708,224.96,224.89,34.19766708]
[1732646470417,34.73458228,224.98,224.91,34.19766708]
[1732646470620,34.73458228,224.98,224.84,49.76426708]
[1732646470621,34.19766708,224.97,224.9,34.19766708]
[1732646470825,0.5369152,224.98,224.91,34.19766708]
[1732646471141,34.19766708,224.94,224.88,34.19766708]
[1732646471514,34.19766708,224.95,224.85,20.0]
[1732646471733,4.9817152,224.98,224.9,34.19766708]
[1732646471939,0.5369152,224.98,224.86,20.0]
[1732646472243,4.9817152,224.98,224.86,20.0]
[1732646472414,4.9817152,224.98,224.85,34.19766708]
[1732646472415,4.9817152,224.98,224.83,4.4478]
[1732646472616,23.776884,224.94,224.76,4.4491]
[1732646473045,23.776884,224.96,224.76,15.572]
[1732646473258,23.776884,224.97,224.94,0.1]
[1732646473549,62.41995108,224.95,224.94,0.1]
[1732646474342,57.97455108,224.95,224.94,0.1]
[1732646474545,38.64276708,224.97,224.94,0.1]
[1732646474750,34.73458228,224.98,224.94,0.1]
[1732646474930,34.73458228,224.98,224.96,34.19766708]
[1732646474931,0.5369152,224.98,224.96,34.19766708]
[1732646475131,0.5369152,224.98,224.94,4.5455]
[1732646475536,0.5369152,224.98,224.94,0.1]
[1732646476445,34.19766708,224.95,224.94,0.1]
[1732646476843,92.17221816,224.95,224.94,0.1]
[1732646477045,23.776884,224.97,224.94,0.1]
[1732646477229,57.97455108,224.95,224.94,0.1]
[1732646477546,23.776884,224.94,224.79,34.19766708]
[1732646477752,34.19766708,224.88,224.81,34.19766708]
[1732646478137,34.19766708,224.88,224.82,34.19766708]
[1732646478450,34.19766708,224.89,224.82,34.19766708]
[1732646479649,38.64396708,224.91,224.84,34.19766708]
[1732646479855,34.19766708,224.87,224.8,34.19766708]
[1732646480050,34.19766708,224.88,224.81,34.19766708]
[1732646480248,34.19766708,224.89,224.82,34.19766708]
[1732646480425,38.64396708,224.91,224.84,34.19766708]
[1732646480630,23.776884,224.91,224.8,20.0]
[1732646480833,57.97455108,224.91,224.85,34.19766708]
[1732646481026,23.776884,224.91,224.85,34.19766708]
[1732646481255,23.776884,224.91,224.86,34.19766708]
[1732646481855,34.19766708,224.87,224.79,34.19766708]
[1732646482034,28.223084,224.91,224.76,4.4491]
[1732646482035,34.19766708,224.84,224.77,34.19766708]
[1732646482245,5.0,224.87,224.62,34.19766708]
[1732646482541,23.776884,224.84,224.63,4.4517]
[1732646482934,20.0,224.79,224.63,4.4517]
[1732646483135,23.776884,224.78,224.63,4.4517]
[1732646483351,34.19766708,224.71,224.65,34.19766708]
[1732646483536,34.19766708,224.75,224.69,34.19766708]
[1732646483730,34.19766708,224.71,224.64,34.19766708]
[1732646483931,4.4489,224.77,224.64,4.4515]
[1732646484139,30.295884,224.76,224.59,4.4525]
[1732646484947,30.295884,224.76,224.49,21.408]
[1732646484948,23.776884,224.72,224.54,4.4535]
[1732646485263,5.0,224.73,224.57,34.19766708]
[1732646485264,34.19766708,224.64,224.57,34.19766708]
[1732646485443,23.776884,224.66,224.54,4.4535]
[1732646485835,23.776884,224.64,224.5,4.4543]
[1732646486243,4.4511,224.67,224.5,15.5901]
[1732646486449,4.4501,224.71,224.52,4.99994941]
[1732646486760,23.776884,224.7,224.5,20.59004941]
[1732646486967,34.19766708,224.67,224.6,34.19766708]
[1732646487338,34.19766708,224.68,224.61,34.19766708]
[1732646487541,34.19766708,224.67,224.6,34.19766708]
[1732646487851,34.19766708,224.67,224.61,34.19766708]
[1732646488245,57.97455108,224.7,224.63,34.19766708]
[1732646488738,34.19766708,224.68,224.61,34.19766708]
[1732646489160,34.19766708,224.69,224.62,34.19766708]
[1732646489331,39.004,224.77,224.65,34.19766708]
[1732646489332,34.19766708,224.71,224.65,34.19766708]
[1732646489538,34.19766708,224.74,224.67,34.19766708]
[1732646490143,34.19766708,224.68,224.56,11.1326]
[1732646490458,10.9682,224.76,224.59,20.0]
[1732646490635,34.19766708,224.67,224.6,34.19766708]
[1732646490835,34.19766708,224.66,224.59,54.19766708]
[1732646491038,34.19766708,224.65,224.57,34.19766708]
[1732646491239,34.19766708,224.65,224.53,4.4537]
[1732646491240,34.19766708,224.65,224.58,34.19766708]
[1732646491464,34.19766708,224.62,224.55,34.19766708]
[1732646491843,34.19766708,224.63,224.56,34.19766708]
[1732646492157,34.19766708,224.63,224.56,38.65066708]
[1732646492564,34.19766708,224.66,224.59,34.19766708]
[1732646492861,34.19766708,224.65,224.58,34.19766708]
[1732646493061,34.19766708,224.66,224.59,34.19766708]
[1732646493261,34.19766708,224.68,224.61,34.19766708]
[1732646493466,34.19766708,224.67,224.6,34.19766708]
[1732646493668,34.19766708,224.63,224.56,34.19766708]
[1732646493966,23.776884,224.69,224.55,34.19766708]
[1732646493967,34.19766708,224.62,224.55,34.19766708]
[1732646494164,4.4507,224.68,224.59,34.19766708]
[1732646494462,23.776884,224.67,224.48,5.0]
[1732646494963,4.4499,224.72,224.51,4.99994941]
[1732646495140,6.519,224.76,224.57,24.99994941]
[1732646495478,34.19766708,224.73,224.66,34.19766708]
[1732646495784,34.19766708,224.74,224.67,34.19766708]
[1732646496069,34.19766708,224.71,224.64,34.19766708]
[1732646496369,34.19766708,224.71,224.65,34.19766708]
[1732646496575,34.19766708,224.73,224.67,34.19766708]
[1732646497074,34.19766708,224.72,224.65,38.64886708]
[1732646497276,34.19766708,224.72,224.65,34.19766708]
[1732646497575,34.19766708,224.73,224.66,34.19766708]
[1732646497758,34.19766708,224.72,224.65,34.19766708]
[1732646498072,6.519,224.76,224.7,34.19766708]
[1732646498073,34.19766708,224.76,224.7,34.19766708]
[1732646498448,34.19766708,224.79,224.72,34.19766708]
[1732646498673,4.448,224.82,224.74,34.19766708]
[1732646498870,4.448,224.82,224.71,34.19766708]
[1732646498871,34.19766708,224.78,224.71,34.19766708]
[1732646499075,34.19766708,224.76,224.7,34.19766708]
[1732646499649,34.19766708,224.75,224.69,34.19766708]
[1732646499855,34.19766708,224.73,224.67,34.19766708]
[1732646500155,34.19766708,224.75,224.68,34.19766708]
[1732646500349,34.19766708,224.74,224.67,34.19766708]
[1732646500665,34.19766708,224.75,224.69,34.19766708]
[1732646501063,34.19766708,224.78,224.71,34.19766708]
[1732646501254,34.19766708,224.73,224.66,34.19766708]
[1732646501578,9.448,224.82,224.61,7.1457]
[1732646501579,34.19766708,224.71,224.61,7.1457]
[1732646501764,5.0,224.78,224.61,4.4521]
[1732646502368,15.568,224.82,224.61,4.4521]
[1732646502369,34.19766708,224.71,224.65,34.19766708]
[1732646502560,57.97455108,224.76,224.7,34.19766708]
[1732646502759,23.776884,224.76,224.7,34.19766708]
[1732646502975,34.19766708,224.78,224.71,34.19766708]
[1732646503164,34.19766708,224.77,224.71,34.19766708]
[1732646503361,34.19766708,224.78,224.71,34.19766708]
[1732646503866,34.19766708,224.77,224.71,34.19766708]
[1732646504073,34.19766708,224.77,224.7,34.19766708]
[1732646504456,34.19766708,224.78,224.71,34.19766708]
[1732646505261,34.19766708,224.82,224.75,34.19766708]
[1732646505469,38.64556708,224.83,224.76,34.19766708]
[1732646505975,34.19766708,224.82,224.75,34.19766708]
[1732646506189,34.19766708,224.83,224.76,34.19766708]
[1732646506476,34.19766708,224.86,224.79,34.19766708]
[1732646506720,7.0569,224.89,224.73,34.19766708]
[1732646506721,34.19766708,224.89,224.83,34.19766708]
[1732646506862,34.19766708,224.89,224.84,4.4476]
[1732646507267,34.19766708,224.89,224.83,4.4478]
[1732646507470,34.19766708,224.91,224.84,34.19766708]
[1732646508486,34.19766708,224.91,224.84,38.64516708]
[1732646509270,7.0569,224.96,224.84,38.64516708]
[1732646509271,34.19766708,224.96,224.89,34.19766708]
[1732646509475,34.24341157,224.98,224.91,34.19766708]
[1732646509783,0.04574449,224.98,224.95,34.19766708]
[1732646510078,0.04574449,224.98,224.96,34.19766708]
[1732646510284,0.04574449,224.98,224.97,34.19766708]
[1732646510488,0.04574449,224.98,224.97,38.64266708]
[1732646510676,0.04574449,224.98,224.97,34.19766708]
[1732646511085,0.04574449,224.98,224.94,34.19766708]
[1732646511271,0.04574449,224.98,224.92,34.19766708]
[1732646511595,34.19766708,224.96,224.89,34.19766708]
[1732646511789,34.19766708,224.92,224.85,34.19766708]
[1732646511999,34.19766708,224.91,224.81,4.4482]
[1732646512289,34.19766708,224.9,224.83,34.19766708]
[1732646512483,34.19766708,224.9,224.8,7.1457]
[1732646512484,34.19766708,224.91,224.84,34.19766708]
[1732646512693,34.19766708,224.95,224.88,34.19766708]
[1732646512988,0.04574449,224.98,224.9,34.19766708]
[1732646512989,34.19766708,224.97,224.9,34.19766708]
[1732646513190,34.24341157,224.98,224.91,34.19766708]
[1732646513398,0.04574449,224.98,224.94,34.19766708]
[1732646513572,4.49054449,224.98,224.87,20.0]
[1732646513769,4.49054449,224.98,224.91,34.19766708]
[1732646513975,0.04574449,224.98,224.92,34.19766708]
[1732646514282,34.24341157,224.98,224.91,34.19766708]
[1732646514588,0.04574449,224.98,224.93,34.19766708]
[1732646514766,34.24341157,224.98,224.91,34.19766708]
[1732646514969,0.04574449,224.98,224.93,34.19766708]
[1732646515592,34.19766708,224.97,224.9,34.19766708]
[1732646515975,58.02029557,224.98,224.91,34.19766708]
[1732646516375,0.04574449,224.98,224.93,34.19766708]
[1732646516767,0.04574449,224.98,224.92,34.19766708]
[1732646516964,0.04574449,224.98,224.91,4.446]
[1732646516965,0.04574449,224.98,224.94,34.19766708]
[1732646517190,0.04574449,224.98,224.93,34.19766708]
[1732646517400,0.04574449,224.98,224.92,34.19766708]
[1732646517580,34.24341157,224.98,224.91,34.19766708]
[1732646517892,0.04574449,224.98,224.92,34.19766708]
[1732646518469,34.24341157,224.98,224.91,34.19766708]
[1732646519093,0.04574449,224.98,224.92,34.19766708]
[1732646519294,0.04574449,224.98,224.97,34.19766708]
[1732646519871,0.04574449,224.98,224.9,4.4464]
[1732646520972,0.04574449,224.98,224.94,34.19766708]
[1732646521173,0.04574449,224.98,224.92,34.19766708]
[1732646521390,0.04574449,224.98,224.9,4.4464]
[1732646521391,0.04574449,224.98,224.93,34.19766708]
[1732646522099,0.04574449,224.98,224.95,34.19766708]
[1732646522271,0.04574449,224.98,224.97,34.19766708]
[1732646522671,4.449e-05,224.98,224.97,34.19766708]
[1732646522887,8.32124067,225.12,225.0,20.0]
[1732646523095,14.83873811,225.16,225.0,20.0]
[1732646523293,14.83873811,225.16,225.02,20.0]
[1732646523494,14.83873811,225.16,225.06,20.0]
[1732646523974,14.83873811,225.16,225.12,34.19766708]
[1732646524295,34.19766708,225.18,225.13,34.19766708]
[1732646524493,34.73458228,225.2,225.14,34.19766708]
[1732646524902,0.5369152,225.2,225.17,34.19766708]
[1732646525077,0.5369152,225.2,225.16,34.19766708]
[1732646525392,0.5369152,225.2,225.17,34.19766708]
[1732646525782,0.5369152,225.2,225.16,34.19766708]
[1732646526206,0.5369152,225.2,225.15,34.19766708]
[1732646526504,0.5369152,225.2,225.16,34.19766708]
[1732646526792,0.5369152,225.2,225.14,4.4416]
[1732646526997,0.5369152,225.2,225.15,20.0]
[1732646527201,0.5369152,225.2,225.19,34.19766708]
[1732646528178,0.5369152,225.2,225.19,38.63826708]
[1732646528378,1.52e-05,225.2,225.19,62.41515108]
[1732646528677,5.76162552,225.34,225.23,20.0]
[1732646528884,5.76162552,225.34,225.3,34.19766708]
[1732646529088,5.76162552,225.34,225.32,34.19766708]
[1732646529399,34.19766708,225.38,225.23,20.0]
[1732646529695,4.4357,225.45,225.37,34.19766708]
[1732646529874,4.4357,225.45,225.31,20.0]
[1732646529875,38.63326708,225.45,225.39,34.19766708]
[1732646530076,4.4349,225.49,225.31,25.0]
[1732646530382,7.4441,225.63,225.42,34.19766708]
[1732646530699,7.4441,225.63,225.42,39.19761649]
[1732646531009,4.4338,225.54,225.42,34.19766708]
[1732646531182,5.0,225.62,225.42,34.19766708]
[1732646531377,34.19766708,225.51,225.42,34.19766708]
[1732646531681,0.07722015,225.43,225.42,34.19766708]
[1732646532305,0.07722015,225.43,225.41,34.19766708]
[1732646532480,0.07722015,225.43,225.42,20.0]
[1732646532798,0.07722015,225.43,225.4,20.0]
[1732646532799,34.27488723,225.43,225.4,20.0]
[1732646532993,34.27488723,225.43,225.37,34.19766708]
[1732646533183,34.27488723,225.43,225.39,20.0]
[1732646533386,34.19766708,225.41,225.38,20.0]
[1732646533578,0.07722015,225.43,225.37,34.19766708]
[1732646533783,0.07722015,225.43,225.4,34.19766708]
[1732646534003,0.07722015,225.43,225.33,5.0]
[1732646534298,0.07722015,225.43,225.33,4.4379]
[1732646534497,0.07722015,225.43,225.35,5.0]
[1732646534700,0.07722015,225.43,225.38,20.0]
[1732646534904,0.07722015,225.43,225.42,23.776884]
[1732646535205,2.015e-05,225.43,225.42,67.97450049]
[1732646535381,2.015e-05,225.43,225.42,39.19761649]
[1732646535696,34.19766708,225.59,225.45,20.0]
[1732646535874,23.5214,225.69,225.49,20.0]
[1732646535875,34.19766708,225.61,225.49,20.0]
[1732646536081,34.19766708,225.5,225.45,20.0]
[1732646536786,34.19766708,225.51,225.45,34.19766708]
[1732646537788,23.776884,225.48,225.39,34.19766708]
[1732646537995,34.19766708,225.4,225.32,34.19766708]
[1732646538306,23.776884,225.49,225.29,7.046]
[1732646538489,23.776884,225.49,225.31,4.4382]
[1732646539203,23.776884,225.49,225.31,9.43814941]
[1732646539396,23.776884,225.49,225.32,28.77683341]
[1732646539586,34.19766708,225.46,225.39,34.19766708]
[1732646540106,34.19766708,225.45,225.4,20.0]
[1732646540285,34.19766708,225.46,225.4,20.0]
[1732646541291,34.19766708,225.47,225.4,34.19766708]
[1732646541707,34.19766708,225.46,225.39,38.63416708]
[1732646541911,34.19766708,225.47,225.42,20.0]
[1732646542093,26.95531466,225.65,225.49,20.0]
[1732646542410,34.19766708,225.57,225.5,34.19766708]
[1732646542711,10.0,225.63,225.44,20.0]
[1732646543214,10.0,225.59,225.39,4.4365]
[1732646543402,10.0,225.57,225.37,24.437]
[1732646543589,34.19766708,225.48,225.41,34.19766708]
[1732646543907,15.5169,225.56,225.43,34.19766708]
[1732646543908,34.19766708,225.5,225.43,34.19766708]
[1732646544105,34.19766708,225.54,225.47,34.19766708]
[1732646545491,34.19766708,225.48,225.41,34.19766708]
[1732646545690,34.19766708,225.45,225.43,20.0]
[1732646545999,34.19766708,225.46,225.43,20.0]
[1732646546207,34.19766708,225.47,225.43,20.0]
[1732646546398,34.19766708,225.46,225.4,34.19766708]
[1732646546804,34.19766708,225.43,225.36,34.19766708]
[1732646547110,34.19766708,225.42,225.35,34.19766708]
[1732646547307,57.97455108,225.45,225.3,4.4385]
[1732646547512,28.212484,225.45,225.34,34.19766708]
[1732646547809,28.212484,225.45,225.3,4.4385]
[1732646548803,34.19766708,225.41,225.34,34.19766708]
[1732646549001,34.19766708,225.4,225.34,34.19766708]
[1732646549310,23.776884,225.44,225.38,34.19766708]
[1732646549504,23.776884,225.44,225.4,34.19766708]
[1732646549689,38.63266708,225.48,225.41,34.19766708]
[1732646549892,34.19766708,225.48,225.41,34.19766708]
[1732646550092,34.19766708,225.48,225.42,34.19766708]
[1732646550294,5.60861205,225.56,225.47,34.19766708]
[1732646550295,34.19766708,225.53,225.47,34.19766708]
[1732646550605,4.4335,225.56,225.42,20.0]
[1732646550914,34.19766708,225.55,225.48,34.19766708]
[1732646551120,34.19766708,225.57,225.51,34.19766708]
[1732646551293,34.19766708,225.55,225.49,34.19766708]
[1732646551488,34.19766708,225.55,225.42,20.0]
[1732646551489,34.19766708,225.54,225.47,34.19766708]
[1732646552118,41.34416708,225.58,225.51,34.19766708]
[1732646552414,7.1465,225.64,225.43,15.5258]
[1732646552597,7.1465,225.64,225.59,34.19766708]
[1732646552806,0.5369152,225.66,225.59,34.19766708]
[1732646552807,39.16598228,225.66,225.59,34.19766708]
[1732646553108,34.73458228,225.66,225.59,34.19766708]
[1732646553291,34.19766708,225.64,225.57,34.19766708]
[1732646553497,4.9683152,225.66,225.5,34.19766708]
[1732646553498,34.19766708,225.65,225.58,34.19766708]
[1732646553697,34.19766708,225.64,225.57,34.19766708]
[1732646553897,34.19766708,225.63,225.56,34.19766708]
[1732646554109,34.19766708,225.63,225.57,34.19766708]
[1732646554297,34.73458228,225.66,225.59,34.19766708]
[1732646554507,34.19766708,225.63,225.56,34.19766708]
[1732646554802,34.19766708,225.64,225.57,34.19766708]
[1732646555111,34.19766708,225.63,225.56,34.19766708]
[1732646555298,34.19766708,225.62,225.55,34.19766708]
[1732646555494,38.62946708,225.64,225.57,34.19766708]
[1732646555695,23.776884,225.63,225.57,34.19766708]
[1732646555905,57.97455108,225.63,225.56,34.19766708]
[1732646556113,57.97455108,225.63,225.57,34.19766708]
[1732646556419,23.776884,225.63,225.57,34.19766708]
[1732646557319,57.97455108,225.63,225.56,34.19766708]
[1732646557915,34.19766708,225.57,225.51,34.19766708]
[1732646558116,28.208884,225.63,225.41,5.0]
[1732646558117,34.19766708,225.52,225.46,34.19766708]
[1732646558498,23.776884,225.51,225.42,4.4361]
[1732646558698,23.776884,225.52,225.37,4.4371]
[1732646559006,23.776884,225.48,225.33,4.4379]
[1732646559193,23.776884,225.48,225.25,7.4095]
[1732646559519,23.776884,225.48,225.27,20.53674941]
[1732646559718,20.0,225.49,225.33,34.19766708]
[1732646559719,34.19766708,225.39,225.33,34.19766708]
[1732646560032,23.776884,225.4,225.34,34.19766708]
[1732646560505,23.776884,225.39,225.34,34.19766708]
[1732646560915,23.776884,225.4,225.35,34.19766708]
[1732646561122,23.776884,225.4,225.34,34.19766708]
[1732646561414,23.776884,225.41,225.35,34.19766708]
[1732646561921,57.97455108,225.41,225.35,34.19766708]
[1732646562495,20.0,225.49,225.37,34.19766708]
[1732646562700,34.19766708,225.49,225.43,34.19766708]
[1732646563010,34.19766708,225.49,225.29,20.53544941]
[1732646563011,15.5195,225.52,225.32,20.0]
[1732646563317,5.0,225.49,225.29,15.5355]
[1732646564123,23.776884,225.45,225.29,15.5355]
[1732646564417,34.19766708,225.4,225.34,34.19766708]
[1732646564620,23.776884,225.41,225.35,34.19766708]
[1732646564927,23.776884,225.41,225.36,34.19766708]
[1732646565220,23.776884,225.46,225.4,34.19766708]
[1732646565409,34.19766708,225.44,225.38,34.19766708]
[1732646565999,34.19766708,225.45,225.38,34.19766708]
[1732646566204,34.19766708,225.45,225.37,34.19766708]
[1732646566205,34.19766708,225.44,225.37,34.19766708]
[1732646566418,34.19766708,225.44,225.29,11.0968]
[1732646566419,34.19766708,225.42,225.35,34.19766708]
[1732646566747,34.19766708,225.4,225.33,34.19766708]
[1732646567102,34.19766708,225.4,225.34,34.19766708]
[1732646567718,34.19766708,225.4,225.02,40.33952119]
[1732646567719,23.776884,225.34,225.25,34.19766708]
[1732646567922,57.97455108,225.34,225.27,34.19766708]
[1732646568216,7.5892,225.38,225.28,34.19766708]
[1732646568217,34.19766708,225.35,225.28,34.19766708]
[1732646568424,57.97455108,225.34,225.27,34.19766708]
[1732646568596,34.19766708,225.32,225.25,34.19766708]
[1732646568799,34.19766708,225.31,225.25,34.19766708]
[1732646569009,57.97455108,225.31,225.24,34.19766708]
[1732646569422,34.19766708,225.3,225.24,34.19766708]
[1732646569911,34.19766708,225.28,225.22,34.19766708]
[1732646570120,57.97455108,225.25,225.18,34.19766708]
[1732646570706,57.97455108,225.25,225.19,34.19766708]
[1732646570906,57.97455108,225.25,225.18,34.19766708]
[1732646571124,34.19766708,225.24,225.17,38.63856708]
[1732646571423,34.19766708,225.22,225.17,4.4409]
[1732646571737,7.5892,225.23,225.06,42.09299587]
[1732646571931,34.19766708,225.17,225.1,34.19766708]
[1732646572432,34.19766708,225.18,225.11,34.19766708]
[1732646573127,46.22676708,225.23,225.16,34.19766708]
[1732646573429,20.0,225.3,225.17,5.0]
[1732646573731,34.19766708,225.25,225.18,39.19761649]
[1732646573908,20.0,225.3,225.11,5.0]
[1732646574112,34.19766708,225.18,225.15,20.0]
[1732646574316,90.0,225.31,225.15,20.0]
[1732646574525,34.19766708,225.18,225.11,5.0]
[1732646574727,23.776884,225.26,225.14,4.99994941]
[1732646574934,34.19766708,225.19,225.14,4.99994941]
[1732646575813,34.19766708,225.2,225.14,4.99994941]
[1732646576315,34.19766708,225.17,225.1,34.19766708]
[1732646576514,34.19766708,225.12,225.05,39.19761649]
[1732646576713,5.86138983,225.19,225.01,9.4441]
[1732646576914,20.0,225.22,225.12,5.0]
[1732646577123,20.0,225.21,225.13,5.0]
[1732646577411,6.41393924,225.16,225.11,7.15403011]
[1732646577713,6.41393924,225.18,225.13,34.19766708]
[1732646578032,6.41393924,225.19,225.09,20.0]
[1732646578228,4.4403,225.21,225.09,20.0]
[1732646578606,4.4403,225.21,225.0,31.1111]
[1732646578808,34.19766708,225.16,225.1,34.19766708]
[1732646579009,34.19766708,225.17,225.1,34.19766708]
[1732646579424,34.19766708,225.17,225.1,38.63996708]
[1732646580019,34.19766708,225.12,225.05,34.19766708]
[1732646580335,4.4393,225.26,225.11,34.19766708]
[1732646580524,4.4393,225.26,225.03,5.0]
[1732646580832,5.0,225.25,224.98,11.1116]
[1732646581011,10.0,225.21,224.98,11.1116]
[1732646581420,15.5416,225.2,224.98,11.1116]
[1732646581769,34.19766708,225.11,225.04,34.19766708]
[1732646581938,4.4404,225.2,225.08,34.19766708]
[1732646582143,34.19766708,225.16,225.09,34.19766708]
[1732646582325,34.19766708,225.15,225.08,34.19766708]
[1732646582633,4.4404,225.2,225.07,34.19766708]
[1732646582841,4.4404,225.2,224.98,11.1116]
[1732646582842,28.776884,225.19,225.02,34.19766708]
[1732646583138,43.776884,225.15,224.96,4.4452]
[1732646583306,15.5458,225.14,224.96,4.4452]
[1732646583511,23.776884,225.13,224.96,4.4452]
[1732646583839,34.19766708,225.1,225.03,34.19766708]
[1732646584527,23.776884,225.13,225.01,34.19766708]
[1732646584528,38.64036708,225.09,225.01,34.19766708]